fUST/lending_fUST_20250319
["ID","MTS","AMOUNT","RATE_DAILY","PERIOD"]
[356383207,1742364646519,-300.0,0.00019178,2]
[356383208,1742364646529,-300.0,0.00019183,2]
[356383209,1742364646539,-2009.08592902,0.00019205,5]
[356383210,1742364646548,-2646.57,0.00019437,7]
[356383211,1742364646558,-300.0,0.00019457,2]
[356383212,1742364646567,-250.0,0.00019521,2]
[356383213,1742364646577,-2646.57,0.00019711,7]
[356383214,1742364646586,-300.0,0.00019731,2]
[356383215,1742364646595,-800.0,0.0001977,2]
[356383216,1742364646605,-1331.028806,0.0001978,5]
[356383217,1742364646614,-1000.0,0.000198,5]
[356383218,1742364646625,-1000.0,0.0001982,5]
[356383219,1742364646635,-1000.0,0.0001984,5]
[356383220,1742364646747,-1000.0,0.0001986,5]
[356383221,1742364646772,-1000.0,0.0001988,5]
[356383222,1742364646782,-1000.0,0.000199,5]
[356383223,1742364646791,-1000.0,0.0001992,5]
[356383224,1742364646800,-1000.0,0.0001994,5]
[356383225,1742364646810,-1000.0,0.0001996,5]
[356383226,1742364646819,-1000.0,0.0001998,5]
[356383227,1742364646828,-2646.57,0.00019985,7]
[356383228,1742364646838,-356.04892809,0.0002,2]
[356383229,1742364646848,-564.34435962,0.0002,2]
[356383230,1742364646857,-70051.40823467,0.0002,20]
[356383231,1742364646866,-281516.09594136,0.0002,10]
[356383232,1742364646880,-390486.4795278,0.0002,10]
[356383233,1742364646890,-300.0,0.0002,2]
[356383234,1742364646900,-504.24,0.0002,30]
[356383235,1742364646910,-150.0,0.0002,2]
[356383236,1742364646922,-152.9,0.0002,7]
[356383237,1742364646931,-192.78,0.0002,2]
[356383238,1742364646941,-1000.0,0.0002,5]
[356383239,1742364646951,-250.0,0.0002,30]
[356383240,1742364646962,-151.19763648,0.0002,2]
[356383241,1742364646972,-150.0,0.0002,2]
[356383242,1742364646982,-160.0,0.0002,3]
[356383243,1742364646991,-160.0,0.0002,7]
[356383244,1742364647001,-160.0,0.0002,3]
[356383245,1742364647011,-160.0,0.0002,3]
[356383246,1742364647020,-2000.0,0.0002,4]
[356383247,1742364647030,-833.92477148,0.0002,10]
[356383248,1742364647039,-300.0,0.00020005,2]
[356383249,1742364647049,-350.0,0.00020068,2]
[356383250,1742364647059,-2646.57,0.00020259,7]
[356383251,1742364647068,-300.0,0.00020279,2]
[356383252,1742364647077,-273.29918849,0.0002045,30]
[356383253,1742364647087,-484.0,0.000205,9]
[356383254,1742364647097,-2646.57,0.00020533,7]
[356383255,1742364647106,-151.0,0.00020548,2]
[356383256,1742364647116,-151.0,0.00020548,2]
[356383257,1742364647127,-151.0,0.00020548,2]
[356383258,1742364647136,-153.426819,0.00020548,2]
[356383259,1742364647146,-280.01350331,0.00020553,2]
[356383260,1742364647156,-450.0,0.00020616,2]
[356383261,1742364647165,-2646.57,0.00020807,7]
[356383262,1742364647175,-265.08721355,0.00021,2]
[356383263,1742364647184,-100000.0,0.00021,7]
[356383264,1742364647194,-10000.0,0.00021,5]
[356383265,1742364647203,-242.08,0.00021,2]
[356383266,1742364647214,-3000.0,0.00021,2]
[356383267,1742364647223,-150.0,0.00021,2]
[356383268,1742364647232,-160.0,0.00021,7]
[356383269,1742364647243,-2000.0,0.00021,4]
[356383270,1742364647252,-833.92477148,0.00021,7]
[356383271,1742364647262,-3000.0,0.0002101,2]
[356383272,1742364647272,-3000.0,0.0002102,2]
[356383273,1742364647282,-3000.0,0.0002103,2]
[356383274,1742364647295,-3000.0,0.0002104,2]
[356383275,1742364647304,-3000.0,0.0002105,2]
[356383276,1742364647314,-3000.0,0.0002106,2]
[356383277,1742364647326,-3000.0,0.0002107,2]
[356383278,1742364647337,-3000.0,0.0002108,2]
[356383279,1742364647346,-2646.74560513,0.00021081,7]
[356383280,1742364647356,-3000.0,0.0002109,2]
[356383281,1742364647366,-3000.0,0.000211,2]
[356383282,1742364647377,-3000.0,0.0002111,2]
[356383283,1742364647386,-3000.0,0.0002112,2]
[356383284,1742364647395,-3000.0,0.0002113,2]
[356383285,1742364647405,-3000.0,0.0002114,2]
[356383286,1742364647415,-3000.0,0.0002115,2]
[356383287,1742364647425,-3000.0,0.0002116,2]
[356383288,1742364647434,-550.0,0.00021164,2]
[356383289,1742364647443,-3000.0,0.0002117,2]
[356383290,1742364647453,-3000.0,0.0002118,2]
[356383291,1742364647462,-3000.0,0.0002119,2]
[356383292,1742364647472,-156.11,0.000212,2]
[356383293,1742364647481,-3000.0,0.000212,2]
[356383294,1742364647491,-3000.0,0.0002121,2]
[356383295,1742364647500,-3000.0,0.0002122,2]
[356383296,1742364647510,-3000.0,0.0002123,2]
[356383297,1742364647519,-3000.0,0.0002124,2]
[356383298,1742364647529,-3000.0,0.0002125,2]
[356383299,1742364647539,-1000.0,0.00021252,2]
[356383300,1742364647549,-1000.0,0.00021252,2]
[356383301,1742364647564,-1000.0,0.00021252,2]
[356383302,1742364647579,-1000.0,0.00021252,2]
[356383303,1742364647590,-1000.0,0.00021252,2]
[356383304,1742364647600,-1000.0,0.00021252,2]
[356383305,1742364647611,-600.86764469,0.00021259,3]
[356383306,1742364647621,-1061.02195796,0.00021259,3]
[356383307,1742364647631,-3000.0,0.0002126,2]
[356383308,1742364647642,-3000.0,0.0002127,2]
[356383309,1742364647652,-3000.0,0.0002128,2]
[356383310,1742364647662,-3000.0,0.0002129,2]
[356383311,1742364647672,-3000.0,0.000213,2]
[356383312,1742364647682,-3000.0,0.0002131,2]
[356383313,1742364647692,-3000.0,0.0002132,2]
[356383314,1742364647702,-3000.0,0.0002133,2]
[356383315,1742364647712,-3000.0,0.0002134,2]
[356383316,1742364647722,-3000.0,0.0002135,2]
[356383317,1742364647732,-3000.0,0.0002136,2]
[356383318,1742364647742,-3000.0,0.0002137,2]
[356383319,1742364647752,-3000.0,0.0002138,2]
[356383320,1742364647762,-3000.0,0.0002139,2]
[356383321,1742364647772,-3000.0,0.000214,2]
[356383322,1742364647783,-3000.0,0.0002141,2]
[356383323,1742364647793,-3000.0,0.0002142,2]
[356383324,1742364647803,-5161.520487,0.0002143,2]
[356383325,1742364647813,-1000.0,0.00021509,2]
[356383326,1742364647823,-1000.0,0.00021509,2]
[356383327,1742364647834,-1000.0,0.00021509,2]
[356383328,1742364647844,-1000.0,0.00021509,2]
[356383329,1742364647855,-1000.0,0.00021509,2]
[356383330,1742364647864,-1000.0,0.00021509,2]
[356383331,1742364647875,-1000.0,0.00021509,2]
[356383332,1742364647888,-947.95004427,0.00021509,2]
[356383333,1742364647898,-1000.0,0.00021509,2]
[356383334,1742364647908,-630.94382167,0.00021509,2]
[356383335,1742364647918,-179.60486929,0.0002167,2]
[356383336,1742364647929,-650.0,0.00021712,2]
[356383337,1742364647939,-1000.0,0.00021917,4]
[356383338,1742364647949,-1000.0,0.00021917,4]
[356383339,1742364647959,-1000.0,0.00021917,4]
[356383340,1742364647970,-1000.0,0.00021917,4]
[356383341,1742364647980,-1000.0,0.00021917,4]
[356383342,1742364647990,-1000.0,0.00021917,4]
[356383343,1742364648000,-191.18279283,0.00021917,4]
[356383344,1742364648010,-1294.0612443,0.00021918,7]
[356383345,1742364648020,-344.849205,0.00021918,2]
[356383346,1742364648030,-344.849205,0.00021918,2]
[356383347,1742364648040,-344.849205,0.00021918,2]
[356383348,1742364648050,-344.849205,0.00021918,2]
[356383349,1742364648059,-344.849205,0.00021918,2]
[356383350,1742364648069,-344.849205,0.00021918,2]
[356383351,1742364648079,-344.849205,0.00021918,2]
[356383352,1742364648088,-344.849205,0.00021918,2]
[356383353,1742364648098,-344.849205,0.00021918,2]
[356383354,1742364648108,-344.849205,0.00021918,2]
[356383355,1742364648118,-344.849205,0.00021918,2]
[356383356,1742364648128,-344.849205,0.00021918,2]
[356383357,1742364648139,-344.849205,0.00021918,2]
[356383358,1742364648149,-344.849205,0.00021918,2]
[356383359,1742364648159,-344.849205,0.00021918,2]
[356383360,1742364648169,-344.849205,0.00021918,2]
[356383361,1742364648179,-344.849205,0.00021918,2]
[356383362,1742364648189,-344.849205,0.00021918,2]
[356383363,1742364648199,-344.849205,0.00021918,2]
[356383364,1742364648209,-344.84920004,0.00021918,2]
[356383365,1742364648219,-214.13160014,0.00021918,2]
[356383366,1742364648229,-221.61561644,0.00021918,2]
[356383367,1742364648239,-346.71507097,0.00022,2]
[356383368,1742364648250,-25629.05724229,0.00022,2]
[356383369,1742364648261,-1000.0,0.00022,2]
[356383370,1742364648271,-2426.53,0.00022,7]
[356383371,1742364648281,-484.0,0.00022,9]
[356383372,1742364648291,-154.0,0.00022,2]
[356383373,1742364648302,-2000.0,0.00022,4]
[356383374,1742364648311,-382.0,0.00022,2]
[356383375,1742364648322,-289.6955896,0.000221,2]
[356383376,1742364648332,-382.0,0.00022192,2]
[356383377,1742364648342,-750.0,0.0002226,2]
[356383378,1742364648353,-158.9661537,0.00022603,2]
[356383379,1742364648363,-575.6035526,0.00022603,2]
[356383380,1742364648374,-560.6455788,0.00022603,2]
[356383381,1742364648384,-155.7217487,0.00022603,2]
[356383382,1742364648394,-155.7217487,0.00022603,2]
[356383383,1742364648404,-559.5403792,0.00022603,2]
[356383384,1742364648414,-155.7217487,0.00022603,2]
[356383385,1742364648424,-254.2575479,0.00022603,2]
[356383386,1742364648434,-155.7217487,0.00022603,2]
[356383387,1742364648444,-314.0726155,0.00022603,2]
[356383388,1742364648454,-187.0634577,0.00022603,2]
[356383389,1742364648464,-186.9075051,0.00022603,2]
[356383390,1742364648475,-850.0,0.00022808,2]
[356383391,1742364648485,-245.48478122,0.00023,2]
[356383392,1742364648494,-281.85677655,0.00023,14]
[356383393,1742364648505,-500.0,0.00023,10]
[356383394,1742364648515,-3300.0,0.00023,10]
[356383395,1742364648526,-3300.0,0.00023,10]
[356383396,1742364648537,-3300.0,0.00023,10]
[356383397,1742364648547,-3300.0,0.00023,10]
[356383398,1742364648556,-3300.0,0.00023,10]
[356383399,1742364648566,-3300.0,0.00023,10]
[356383400,1742364648576,-3300.0,0.00023,10]
[356383401,1742364648587,-3300.0,0.00023,10]
[356383402,1742364648597,-3300.0,0.00023,10]
[356383403,1742364648607,-3300.0,0.00023,10]
[356383404,1742364648617,-3300.0,0.00023,10]
[356383405,1742364648629,-3300.0,0.00023,10]
[356383406,1742364648640,-499.3,0.00023,10]
[356383407,1742364648650,-1000.0,0.00023,10]
[356383408,1742364648665,-3300.0,0.00023,10]
[356383409,1742364648675,-190.18366155,0.00023,10]
[356383410,1742364648685,-1000.0,0.00023,10]
[356383411,1742364648695,-500.0,0.00023,10]
[356383412,1742364648706,-3300.0,0.00023,10]
[356383413,1742364648716,-1000.0,0.00023,10]
[356383414,1742364648727,-800.0,0.00023,10]
[356383415,1742364648737,-3300.0,0.00023,10]
[356383416,1742364648748,-1000.0,0.00023,10]
[356383417,1742364648758,-800.0,0.00023,10]
[356383418,1742364648769,-800.0,0.00023,10]
[356383419,1742364648779,-800.0,0.00023,10]
[356383420,1742364648791,-1000.0,0.00023,10]
[356383421,1742364648801,-800.0,0.00023,10]
[356383422,1742364648813,-1000.0,0.00023,10]
[356383423,1742364648825,-800.0,0.00023,10]
[356383424,1742364648836,-1000.0,0.00023,10]
[356383425,1742364648846,-800.0,0.00023,10]
[356383426,1742364648857,-1000.0,0.00023,10]
[356383427,1742364648867,-190.0,0.00023,10]
[356383428,1742364648881,-800.0,0.00023,10]
[356383429,1742364648893,-1000.0,0.00023,10]
[356383430,1742364648903,-800.0,0.00023,10]
[356383431,1742364648914,-1000.0,0.00023,10]
[356383432,1742364648927,-800.0,0.00023,10]
[356383433,1742364648937,-1000.0,0.00023,10]
[356383434,1742364648948,-425.99618592,0.00023,10]
[356383435,1742364648958,-800.0,0.00023,10]
[356383436,1742364648969,-1000.0,0.00023,10]
[356383437,1742364648980,-800.0,0.00023,10]
[356383438,1742364648991,-1000.0,0.00023,10]
[356383439,1742364649002,-800.0,0.00023,10]
[356383440,1742364649012,-1000.0,0.00023,10]
[356383441,1742364649022,-800.0,0.00023,10]
[356383442,1742364649032,-1000.0,0.00023,10]
[356383443,1742364649042,-504.49962027,0.00023,10]
[356383444,1742364649052,-164.6576733,0.00023,10]
[356383445,1742364649062,-500.0,0.00023,10]
[356383446,1742364649072,-500.0,0.00023,10]
[356383447,1742364649082,-500.0,0.00023,10]
[356383448,1742364649092,-500.0,0.00023,10]
[356383449,1742364649102,-500.0,0.00023,10]
[356383450,1742364649112,-500.0,0.00023,10]
[356383451,1742364649122,-500.0,0.00023,10]
[356383452,1742364649132,-500.0,0.00023,10]
[356383453,1742364649142,-500.0,0.00023,10]
[356383454,1742364649151,-500.0,0.00023,10]
[356383455,1742364649161,-500.0,0.00023,10]
[356383456,1742364649170,-500.0,0.00023,10]
[356383457,1742364649180,-500.0,0.00023,10]
[356383458,1742364649190,-500.0,0.00023,10]
[356383459,1742364649200,-499.3,0.00023,10]
[356383460,1742364649209,-244.0,0.00023,2]
[356383461,1742364649363,-417.89091067,0.00023,3]
[356383462,1742364649374,-160.0,0.00023,3]
[356383463,1742364649384,-685.598743,0.00023,2]
[356383464,1742364649395,-2000.0,0.00023,4]
[356383465,1742364649405,-382.0,0.00023014,2]
[356383466,1742364649415,-950.0,0.00023356,2]
[356383467,1742364649424,-5543.83934721,0.00023395,2]
[356383468,1742364649435,-1000.0,0.00023452,2]
[356383469,1742364649444,-279.11668251,0.00023452,2]
[356383470,1742364649454,-549.41387189,0.00023452,2]
[356383471,1742364649463,-1000.0,0.00023452,2]
[356383472,1742364649473,-1000.0,0.00023452,2]
[356383473,1742364649483,-1000.0,0.00023452,2]
[356383474,1742364649492,-1000.0,0.00023452,2]
[356383475,1742364649502,-1000.0,0.00023452,2]
[356383476,1742364649514,-1042.50611741,0.00023452,2]
[356383477,1742364649524,-1000.0,0.00023452,2]
[356383478,1742364649534,-1000.0,0.00023452,2]
[356383479,1742364649544,-1000.0,0.00023452,2]
[356383480,1742364649553,-1000.0,0.00023452,2]
[356383481,1742364649563,-1000.0,0.00023452,2]
[356383482,1742364649573,-1000.0,0.00023452,2]
[356383483,1742364649583,-1000.0,0.00023452,2]
[356383484,1742364649593,-1000.0,0.00023452,2]
[356383485,1742364649603,-1000.0,0.00023452,2]
[356383486,1742364649612,-519.4402032,0.00023452,2]
[356383487,1742364649623,-1000.0,0.00023452,2]
[356383488,1742364649633,-1000.0,0.00023452,2]
[356383489,1742364649643,-603.77225207,0.00023452,2]
[356383490,1742364649653,-1094.36720335,0.00023452,2]
[356383491,1742364649663,-230.71333187,0.00023452,2]
[356383492,1742364649673,-1000.0,0.00023452,2]
[356383493,1742364649683,-1097.1472619,0.00023452,2]
[356383494,1742364649693,-348.03042703,0.00023452,2]
[356383495,1742364649703,-1000.0,0.00023452,2]
[356383496,1742364649713,-1000.0,0.00023452,2]
[356383497,1742364649723,-1000.0,0.00023452,2]
[356383498,1742364649733,-1000.0,0.00023452,2]
[356383499,1742364649743,-1000.0,0.00023452,2]
[356383500,1742364649752,-1000.0,0.00023452,2]
[356383501,1742364649762,-1000.0,0.00023452,2]
[356383502,1742364649772,-343.66733705,0.00023452,2]
[356383503,1742364649781,-1000.0,0.00023452,2]
[356383504,1742364649791,-484.0,0.000235,10]
[356383505,1742364649801,-500.0,0.000235,2]
[356383506,1742364649810,-2426.53,0.000238,7]
[356383507,1742364649820,-1050.0,0.00023904,2]
[356383508,1742364649830,-1666.42651156,0.00024,2]
[356383509,1742364649840,-1000.0,0.00024,5]
[356383510,1742364649849,-151.0,0.00024,14]
[356383511,1742364649859,-417.89091067,0.00024,7]
[356383512,1742364649870,-417.89091067,0.00024,10]
[356383513,1742364649882,-160.0,0.00024,7]
[356383514,1742364649891,-160.0,0.00024,10]
[356383515,1742364649901,-500.0,0.00024,2]
[356383516,1742364649911,-2000.0,0.00024,4]
[356383517,1742364649922,-384.0,0.00024164,2]
[356383518,1742364649931,-800.0,0.000244,2]
[356383519,1742364649942,-569.71067017,0.00024452,2]
[356383520,1742364649952,-756.36711969,0.000245,10]
[356383521,1742364649963,-500.0,0.000245,2]
[356383522,1742364649973,-200.0,0.00024658,2]
[356383523,1742364649983,-232.7806917,0.00024658,2]
[356383524,1742364649992,-380.0,0.00024658,2]
[356383525,1742364650003,-150.0,0.00024692,7]
[356383526,1742364650012,-150.38587062,0.00024692,7]
[356383527,1742364650022,-1000.0,0.000248,14]
[356383528,1742364650031,-500.0,0.00024873,2]
[356383529,1742364650040,-16495.31519451,0.000249,2]
[356384525,1742365227659,-50000.0,0.00045667,31]
[356384527,1742365227684,-20000.0,0.00045667,30]
[356384528,1742365227710,-5000.0,0.00045667,120]
[356384530,1742365227735,-227.84417663,0.00045667,120]
[356384532,1742365227765,-1353.0,0.00045667,30]
[356384533,1742365227790,-150.0,0.00045667,30]
[356384535,1742365227816,-907.97,0.00045667,120]
[356384537,1742365227843,-2000.0,0.00045667,120]
[356384538,1742365227869,-2000.0,0.00045667,120]
[356384540,1742365227896,-1131.0,0.00045667,120]
[356384542,1742365227924,-1802.0,0.00045667,120]
[356384543,1742365227950,-2299.91837651,0.00045667,120]
[356384545,1742365227975,-500.0,0.00045667,120]
[356384547,1742365228033,-1268.01775068,0.00045667,120]
[356384554,1742365228255,-500.0,0.00045667,120]
[356384556,1742365228280,-500.0,0.00045667,120]
[356384557,1742365228305,-514.77299952,0.00045667,120]
[356384559,1742365228330,-500.0,0.00045667,30]
[356384561,1742365228355,-500.0,0.00045667,30]
[356384562,1742365228382,-2083.33,0.00045667,120]
[356384564,1742365228408,-2083.33,0.00045667,120]
[356384566,1742365228434,-2083.33,0.00045667,120]
[356384567,1742365228460,-2083.41,0.00045667,120]
[356384569,1742365228491,-154.99999901,0.00045667,120]
[356384571,1742365228517,-1492.74609328,0.00045667,120]
[356384572,1742365228547,-633.44,0.00045667,120]
[356384574,1742365228574,-2795.71,0.00045667,120]
[356384576,1742365228599,-2795.71,0.00045667,120]
[356384577,1742365228624,-2795.71,0.00045667,120]
[356384579,1742365228648,-2795.71,0.00045667,120]
[356384581,1742365228673,-2795.71,0.00045667,120]
[356384582,1742365228698,-2795.71,0.00045667,120]
[356384584,1742365228722,-2795.71,0.00045667,120]
[356384586,1742365228748,-2795.78860763,0.00045667,120]
[356384587,1742365228775,-1290.76,0.00045667,120]
[356384589,1742365228801,-1290.76,0.00045667,120]
[356384591,1742365228826,-1290.76,0.00045667,120]
[356384592,1742365228851,-1290.76,0.00045667,120]
[356384594,1742365228876,-1290.76,0.00045667,120]
[356384596,1742365228901,-1290.76,0.00045667,120]
[356384601,1742365229056,-1290.76,0.00045667,120]
[356384603,1742365229127,-1290.76,0.00045667,120]
[356384605,1742365229153,-1290.76,0.00045667,120]
[356384606,1742365229179,-1290.76,0.00045667,120]
[356384608,1742365229205,-1290.76,0.00045667,120]
[356384610,1742365229235,-1290.76,0.00045667,120]
[356384611,1742365229260,-1290.76,0.00045667,120]
[356384613,1742365229285,-1290.76,0.00045667,120]
[356384615,1742365229310,-1290.76,0.00045667,120]
[356384617,1742365229348,-1290.76,0.00045667,120]
[356384619,1742365229379,-1290.76,0.00045667,120]
[356384620,1742365229407,-1290.76,0.00045667,120]
[356384622,1742365229435,-1290.76,0.00045667,120]
[356384624,1742365229462,-1290.76,0.00045667,120]
[356384625,1742365229490,-1290.76,0.00045667,120]
[356384627,1742365229518,-1290.76,0.00045667,120]
[356384629,1742365229546,-1290.76,0.00045667,120]
[356384631,1742365229574,-1290.8943982,0.00045667,120]
[356384632,1742365229605,-1316.91,0.00045667,120]
[356384634,1742365229633,-1316.91,0.00045667,120]
[356384636,1742365229660,-1316.91,0.00045667,120]
[356384637,1742365229687,-1316.91,0.00045667,120]
[356384639,1742365229715,-1316.91,0.00045667,120]
[356384641,1742365229742,-1316.91,0.00045667,120]
[356384643,1742365229769,-1316.91,0.00045667,120]
[356384644,1742365229796,-1316.99491916,0.00045667,120]
[356384646,1742365229826,-1189.4,0.00045667,120]
[356384648,1742365229854,-1189.4,0.00045667,120]
[356384649,1742365229882,-1189.4,0.00045667,120]
[356384651,1742365229909,-1189.4,0.00045667,120]
[356384653,1742365229937,-1189.4,0.00045667,120]
[356384654,1742365229964,-1189.4,0.00045667,120]
[356384656,1742365229991,-1189.4,0.00045667,120]
[356384658,1742365230019,-1189.4,0.00045667,120]
[356384659,1742365230046,-1189.4,0.00045667,120]
[356384661,1742365230075,-1189.63665306,0.00045667,120]
[356384663,1742365230104,-211.23054766,0.00045667,30]
[356385344,1742365264143,693.81,0.00045667,120]
[356385345,1742365264382,693.81,0.00045667,120]
[356385346,1742365264630,693.81,0.00045667,120]
[356385347,1742365264922,693.81,0.00045667,120]
[356385348,1742365265149,693.81,0.00045667,120]
[356385349,1742365265399,693.81,0.00045667,120]
[356385350,1742365265669,693.81,0.00045667,120]
[356385351,1742365265926,693.81,0.00045667,120]
[356385352,1742365266169,693.81,0.00045667,120]
[356385353,1742365266435,693.97,0.00045667,120]
[356385354,1742365306122,382.01802076,0.00045667,120]
[356385551,1742365501355,1863.8,0.00045667,120]
[356385552,1742365501606,1863.8,0.00045667,120]
[356385554,1742365501885,1863.8,0.00045667,120]
[356385562,1742365502194,1863.8,0.00045667,120]
[356385571,1742365502478,1863.8,0.00045667,120]
[356385578,1742365502728,1863.8,0.00045667,120]
[356385586,1742365503024,1863.8,0.00045667,120]
[356385593,1742365503287,1863.8,0.00045667,120]
[356385603,1742365503749,1863.8,0.00045667,120]
[356385604,1742365503833,1863.96,0.00045667,120]
[356385681,1742365510618,500.0,0.00045667,120]
[356385682,1742365510883,500.0,0.00045667,120]
[356385683,1742365511239,500.0,0.00045667,120]
[356385684,1742365511500,500.0,0.00045667,120]
[356385685,1742365511781,500.0,0.00045667,120]
[356385686,1742365512022,213.34,0.00045667,120]
[356385911,1742365556094,-167.982658,0.00010959,2]
[356385912,1742365556115,-611.25507097,0.00015034,2]
[356385913,1742365556136,-160.0,0.00015115,2]
[356385914,1742365556163,-655.69220451,0.00015115,2]
[356385915,1742365584627,877.94,0.00045667,120]
[356385916,1742365584882,877.94,0.00045667,120]
[356385917,1742365585127,877.94,0.00045667,120]
[356385918,1742365585445,877.94,0.00045667,120]
[356385919,1742365585731,877.94,0.00045667,120]
[356385920,1742365585974,877.94,0.00045667,120]
[356385921,1742365586471,877.94,0.00045667,120]
[356385922,1742365586577,877.94,0.00045667,120]
[356385923,1742365586818,877.94,0.00045667,120]
[356385924,1742365587056,877.94,0.00045667,120]
[356385925,1742365608084,-177.10636203,0.00015095,2]
[356385926,1742365655529,684794.7474579,0.00045667,30]
[356385982,1742365838162,-750.69477988,0.00014407,2]
[356385998,1742365846326,-198.61230363,0.00014307,2]
[356385999,1742365846336,-489.24617752,0.00014407,2]
[356386000,1742365846345,-833.92477148,0.00015016,2]
[356386001,1742365846355,-3464.89959205,0.00015273,2]
[356386002,1742365846365,-160.0,0.00015317,2]
[356386003,1742365846375,-194.76784988,0.00015351,2]
[356386004,1742365846384,-3000.0,0.00015352,2]
[356386005,1742365846394,-87548.22235988,0.00015352,2]
[356386006,1742365846405,-42111.64537246,0.00015352,2]
[356386007,1742366745121,-196.76751656,0.00010849,2]
[356386008,1742366745142,-172.374518,0.00010959,2]
[356386009,1742366745164,-417.89091067,0.00014738,2]
[356386010,1742366745186,-363.0,0.000149,5]
[356386011,1742366745206,-160.0,0.00015045,2]
[356386012,1742366745227,-38.18351032,0.00015062,2]
[356386013,1742366831091,-833.92477148,0.00015028,2]
[356386014,1742366831114,-68.01673933,0.00015252,2]
[356386015,1742366845012,303.16,8e-05,2]
[356386085,1742367038291,-160.0,0.00015216,2]
[356386086,1742367038301,-417.89091067,0.00015219,2]
[356386088,1742367038311,-833.92477148,0.00015236,2]
[356386089,1742367038320,-2931.98326067,0.00015252,2]
[356386090,1742367038330,-363.0,0.000164,6]
[356386091,1742367038340,-695.22803341,0.00017491,2]
[356386092,1742367038350,-363.0,0.000179,7]
[356386093,1742367038359,-3724.76706141,0.0001807,2]
[356386094,1742367038369,-1700.0,0.0001817,2]
[356386095,1742367038379,-1700.0,0.0001817,2]
[356386096,1742367038388,-1700.0,0.0001817,2]
[356386097,1742367038398,-1700.0,0.0001817,2]
[356386098,1742367038407,-1700.0,0.0001817,2]
[356386099,1742367038417,-1700.0,0.0001817,2]
[356386100,1742367038426,-1700.0,0.0001817,2]
[356386101,1742367038435,-1700.0,0.0001817,2]
[356386102,1742367038446,-1700.0,0.0001817,2]
[356386103,1742367038455,-1700.0,0.0001817,2]
[356386104,1742367038465,-1700.0,0.0001817,2]
[356386105,1742367038474,-1700.0,0.0001817,2]
[356386106,1742367038483,-1700.0,0.0001817,2]
[356386107,1742367038493,-1900.0,0.0001817,2]
[356386108,1742367038502,-500.0,0.0001817,2]
[356386109,1742367038512,-500.0,0.0001817,2]
[356386110,1742367038521,-500.0,0.0001817,2]
[356386111,1742367038531,-500.0,0.0001817,2]
[356386112,1742367038541,-500.0,0.0001817,2]
[356386113,1742367038550,-500.0,0.0001817,2]
[356386114,1742367038560,-500.0,0.0001817,2]
[356386115,1742367038569,-500.0,0.0001817,2]
[356386116,1742367038579,-500.0,0.0001817,2]
[356386117,1742367038588,-500.0,0.0001817,2]
[356386118,1742367038598,-500.0,0.0001817,2]
[356386119,1742367038607,-500.0,0.0001817,2]
[356386120,1742367038617,-500.0,0.0001817,2]
[356386121,1742367038626,-500.0,0.0001817,2]
[356386122,1742367038636,-600.0,0.0001817,2]
[356386123,1742367038649,-500.0,0.0001817,2]